[Event "Titled Tuesday Blitz August 17 2021"]
[White "Goncalves, Davi Sulzbacher"]
[Black "Korchmar, Vasiliy"]
[WhiteFideId "2154510"]
[BlackFideId "24131750"]
[WhiteElo "2107"]
[BlackElo "2370"]
[Result "0-1"]
[Round "06"]
[TimeControl "180+1"]
[Date "2021.08.17"]
[WhiteClock "0:00:05"]
[BlackClock "0:00:49"]

1. d4 {[%clk 0:03:00]}  d5 {[%clk 0:02:56]} 2. c4 {[%clk 0:03:01]}  c6 {[%clk 0:02:55]} 3. Nf3 {[%clk 0:03:01]}  Nf6 {[%clk 0:02:52]} 4. e3 {[%clk 0:03:00]}  Bg4 {[%clk 0:02:50]} 5. Nc3 {[%clk 0:03:00]}  e6 {[%clk 0:02:48]} 6. Be2 {[%clk 0:02:55]}  Nbd7 {[%clk 0:02:47]} 7. O-O {[%clk 0:02:55]}  Bd6 {[%clk 0:02:47]} 8. Qc2 {[%clk 0:02:49]}  O-O {[%clk 0:02:44]} 9. e4 {[%clk 0:02:38]}  dxe4 {[%clk 0:02:37]} 10. Nxe4 {[%clk 0:02:39]}  Nxe4 {[%clk 0:02:36]} 11. Qxe4 {[%clk 0:02:40]}  Bf5 {[%clk 0:02:34]} 12. Qh4 {[%clk 0:02:34]}  Be7 {[%clk 0:02:27]} 13. Bg5 {[%clk 0:02:31]}  Nf6 {[%clk 0:02:23]} 14. Rad1 {[%clk 0:02:11]}  h6 {[%clk 0:02:21]} 15. Bxf6 {[%clk 0:02:11]}  Bxf6 {[%clk 0:02:22]} 16. Qg3 {[%clk 0:02:11]}  Qb6 {[%clk 0:02:09]} 17. b3 {[%clk 0:02:09]}  Rfd8 {[%clk 0:02:07]} 18. Qf4 {[%clk 0:01:50]}  a5 {[%clk 0:02:00]} 19. Bd3 {[%clk 0:01:35]}  Bxd3 {[%clk 0:01:56]} 20. Rxd3 {[%clk 0:01:36]}  a4 {[%clk 0:01:56]} 21. Rfd1 {[%clk 0:01:33]}  axb3 {[%clk 0:01:56]} 22. axb3 {[%clk 0:01:30]}  Ra3 {[%clk 0:01:54]} 23. c5 {[%clk 0:01:13]}  Qb5 {[%clk 0:01:51]} 24. Qe3 {[%clk 0:00:59]}  Rda8 {[%clk 0:01:34]} 25. Nd2 {[%clk 0:00:55]}  Bg5 {[%clk 0:01:30]} 26. f4 {[%clk 0:00:52]}  Ra1 {[%clk 0:01:29]} 27. Nc4 {[%clk 0:00:38]}  Bf6 {[%clk 0:01:21]} 28. Nd6 {[%clk 0:00:28]}  Qb4 {[%clk 0:01:22]} 29. f5 {[%clk 0:00:25]}  Bg5 {[%clk 0:01:17]} 30. Qf3 {[%clk 0:00:24]}  e5 {[%clk 0:01:11]} 31. f6 {[%clk 0:00:19]}  Bxf6 {[%clk 0:01:04]} 32. dxe5 {[%clk 0:00:12]}  Qxc5+ {[%clk 0:01:04]} 33. Qf2 {[%clk 0:00:06]}  Qxe5 {[%clk 0:01:02]} 34. Nc4 {[%clk 0:00:06]}  Qe4 {[%clk 0:00:58]} 35. Qf3 {[%clk 0:00:05]}  Qg6 {[%clk 0:00:50]} 36. Ne3 {[%clk 0:00:05]}  Qxd3 {[%clk 0:00:49]} 0-1


[Site "https://www.chess.com"]

[Event "Titled Tuesday Blitz August 17 2021"]
[White "Green, Andrew D"]
[Black "Katz, Alexander"]
[WhiteFideId "2401762"]
[BlackFideId "2039796"]
[WhiteElo "2159"]
[BlackElo "2371"]
[Result "0-1"]
[Round "06"]
[TimeControl "180+1"]
[Date "2021.08.17"]
[WhiteClock "0:00:15"]
[BlackClock "0:00:41"]

1. d4 {[%clk 0:03:00]}  Nf6 {[%clk 0:02:55]} 2. Nf3 {[%clk 0:03:00]}  e6 {[%clk 0:02:54]} 3. Bf4 {[%clk 0:03:00]}  d5 {[%clk 0:02:50]} 4. e3 {[%clk 0:03:00]}  Bd6 {[%clk 0:02:49]} 5. Nbd2 {[%clk 0:03:00]}  O-O {[%clk 0:02:49]} 6. Bd3 {[%clk 0:02:59]}  c5 {[%clk 0:02:49]} 7. c3 {[%clk 0:02:59]}  Qc7 {[%clk 0:02:49]} 8. Bxd6 {[%clk 0:02:51]}  Qxd6 {[%clk 0:02:49]} 9. dxc5 {[%clk 0:02:52]}  Qxc5 {[%clk 0:02:49]} 10. e4 {[%clk 0:02:52]}  Nc6 {[%clk 0:02:45]} 11. e5 {[%clk 0:02:48]}  Nd7 {[%clk 0:02:29]} 12. Bxh7+ {[%clk 0:02:35]}  Kxh7 {[%clk 0:02:30]} 13. Ng5+ {[%clk 0:02:36]}  Kg6 {[%clk 0:02:30]} 14. Qg4 {[%clk 0:01:27]}  Ndxe5 {[%clk 0:02:11]} 15. Qg3 {[%clk 0:01:26]}  Qb5 {[%clk 0:01:32]} 16. Nge4+ {[%clk 0:00:33]}  Kh7 {[%clk 0:01:24]} 17. Qh4+ {[%clk 0:00:32]}  Kg8 {[%clk 0:01:20]} 18. Ng5 {[%clk 0:00:33]}  Re8 {[%clk 0:00:57]} 19. Qh7+ {[%clk 0:00:27]}  Kf8 {[%clk 0:00:57]} 20. Qh8+ {[%clk 0:00:28]}  Ke7 {[%clk 0:00:58]} 21. Qxg7 {[%clk 0:00:28]}  Bd7 {[%clk 0:00:48]} 22. f4 {[%clk 0:00:26]}  Rg8 {[%clk 0:00:46]} 23. Qh7 {[%clk 0:00:25]}  Rh8 {[%clk 0:00:42]} 24. Qg7 {[%clk 0:00:15]}  Rag8 {[%clk 0:00:41]} 0-1


[Site "https://www.chess.com"]

[Event "Titled Tuesday Blitz August 17 2021"]
[White "Guz, Ari"]
[Black "Gunina, Valentina"]
[WhiteFideId "2825759"]
[BlackFideId "4167570"]
[WhiteElo "1847"]
[BlackElo "2399"]
[Result "0-1"]
[Round "06"]
[TimeControl "180+1"]
[Date "2021.08.17"]
[WhiteClock "0:00:18"]
[BlackClock "0:01:07"]

1. d4 {[%clk 0:03:00]}  d5 {[%clk 0:02:59]} 2. Nf3 {[%clk 0:03:00]}  Nf6 {[%clk 0:02:59]} 3. Bf4 {[%clk 0:03:00]}  c5 {[%clk 0:02:58]} 4. e3 {[%clk 0:02:56]}  Bg4 {[%clk 0:02:56]} 5. Nbd2 {[%clk 0:02:55]}  e6 {[%clk 0:02:56]} 6. c3 {[%clk 0:02:55]}  Bd6 {[%clk 0:02:55]} 7. Bxd6 {[%clk 0:02:55]}  Qxd6 {[%clk 0:02:56]} 8. Qa4+ {[%clk 0:02:54]}  Nbd7 {[%clk 0:02:50]} 9. Ne5 {[%clk 0:02:54]}  cxd4 {[%clk 0:02:40]} 10. exd4 {[%clk 0:02:50]}  O-O {[%clk 0:02:38]} 11. f4 {[%clk 0:02:38]}  Bf5 {[%clk 0:02:38]} 12. Be2 {[%clk 0:02:37]}  a6 {[%clk 0:02:24]} 13. O-O {[%clk 0:02:36]}  b5 {[%clk 0:02:25]} 14. Qd1 {[%clk 0:02:32]}  Qb6 {[%clk 0:02:22]} 15. a3 {[%clk 0:02:30]}  Nxe5 {[%clk 0:02:13]} 16. fxe5 {[%clk 0:02:29]}  Nd7 {[%clk 0:02:14]} 17. Kh1 {[%clk 0:02:28]}  f6 {[%clk 0:02:13]} 18. exf6 {[%clk 0:02:25]}  Rxf6 {[%clk 0:02:13]} 19. Bg4 {[%clk 0:02:20]}  Bxg4 {[%clk 0:02:06]} 20. Qxg4 {[%clk 0:02:20]}  Raf8 {[%clk 0:02:06]} 21. Rxf6 {[%clk 0:02:15]}  Nxf6 {[%clk 0:02:06]} 22. Qh3 {[%clk 0:02:11]}  a5 {[%clk 0:02:06]} 23. Re1 {[%clk 0:02:11]}  Re8 {[%clk 0:02:00]} 24. g4 {[%clk 0:02:00]}  b4 {[%clk 0:01:54]} 25. axb4 {[%clk 0:01:56]}  axb4 {[%clk 0:01:54]} 26. g5 {[%clk 0:01:56]}  Ne4 {[%clk 0:01:54]} 27. Nxe4 {[%clk 0:01:53]}  dxe4 {[%clk 0:01:53]} 28. Qg2 {[%clk 0:01:48]}  bxc3 {[%clk 0:01:47]} 29. bxc3 {[%clk 0:01:47]}  e3 {[%clk 0:01:32]} 30. Rxe3 {[%clk 0:01:32]}  Qb1+ {[%clk 0:01:31]} 31. Qg1 {[%clk 0:01:32]}  Qf5 {[%clk 0:01:31]} 32. Qe1 {[%clk 0:01:18]}  Qxg5 {[%clk 0:01:29]} 33. c4 {[%clk 0:01:13]}  Qg4 {[%clk 0:01:26]} 34. Re4 {[%clk 0:01:03]}  Qf3+ {[%clk 0:01:26]} 35. Kg1 {[%clk 0:01:04]}  Rf8 {[%clk 0:01:17]} 36. Rxe6 {[%clk 0:00:40]}  Qg4+ {[%clk 0:01:15]} 37. Kh1 {[%clk 0:00:40]}  Qxd4 {[%clk 0:01:14]} 38. Re8 {[%clk 0:00:39]}  Qxc4 {[%clk 0:01:14]} 39. Rxf8+ {[%clk 0:00:35]}  Kxf8 {[%clk 0:01:15]} 40. Qf2+ {[%clk 0:00:35]}  Kg8 {[%clk 0:01:13]} 41. h3 {[%clk 0:00:29]}  Qe4+ {[%clk 0:01:11]} 42. Kh2 {[%clk 0:00:29]}  h6 {[%clk 0:01:11]} 43. Qg3 {[%clk 0:00:25]}  Kh7 {[%clk 0:01:10]} 44. Qg4 {[%clk 0:00:19]}  Qxg4 {[%clk 0:01:07]} 45. hxg4 {[%clk 0:00:19]}  Kg6 {[%clk 0:01:07]} 46. Kg3 {[%clk 0:00:18]}  Kg5 {[%clk 0:01:07]} 47. Kh3 {[%clk 0:00:18]}  Kf4 {[%clk 0:01:07]} 48. Kh4 {[%clk 0:00:18]}  g5+ {[%clk 0:01:06]} 49. Kh3 {[%clk 0:00:18]}  Kf3 {[%clk 0:01:07]} 0-1


[Site "https://www.chess.com"]

[Event "Titled Tuesday Blitz August 17 2021"]
[White "Holt, Conrad"]
[Black "Wagh Suyog"]
[WhiteFideId "2034387"]
[BlackFideId "25071688"]
[WhiteElo "2586"]
[BlackElo "2219"]
[Result "1-0"]
[Round "06"]
[TimeControl "180+1"]
[Date "2021.08.17"]
[WhiteClock "0:00:04"]
[BlackClock "0:00:01"]

1. d4 {[%clk 0:03:00]}  g6 {[%clk 0:03:00]} 2. c4 {[%clk 0:02:59]}  Bg7 {[%clk 0:03:00]} 3. Nf3 {[%clk 0:02:59]}  d6 {[%clk 0:03:00]} 4. e4 {[%clk 0:02:59]}  Nc6 {[%clk 0:03:00]} 5. Be2 {[%clk 0:02:58]}  Bg4 {[%clk 0:02:50]} 6. Nbd2 {[%clk 0:02:58]}  Nf6 {[%clk 0:02:46]} 7. d5 {[%clk 0:02:56]}  Nb8 {[%clk 0:02:41]} 8. Qb3 {[%clk 0:02:50]}  Bc8 {[%clk 0:02:39]} 9. Qc2 {[%clk 0:02:45]}  O-O {[%clk 0:02:39]} 10. O-O {[%clk 0:02:44]}  e5 {[%clk 0:02:38]} 11. c5 {[%clk 0:02:39]}  Nbd7 {[%clk 0:02:27]} 12. b4 {[%clk 0:02:36]}  a5 {[%clk 0:02:26]} 13. cxd6 {[%clk 0:02:24]}  cxd6 {[%clk 0:02:24]} 14. Nc4 {[%clk 0:02:24]}  Qc7 {[%clk 0:02:09]} 15. bxa5 {[%clk 0:02:20]}  Rxa5 {[%clk 0:02:06]} 16. Bd2 {[%clk 0:02:14]}  Ra8 {[%clk 0:01:58]} 17. Bb4 {[%clk 0:02:12]}  Ne8 {[%clk 0:01:54]} 18. Rfc1 {[%clk 0:02:10]}  Bh6 {[%clk 0:01:44]} 19. Nfd2 {[%clk 0:01:48]}  Qb8 {[%clk 0:01:36]} 20. Rab1 {[%clk 0:01:39]}  f5 {[%clk 0:01:32]} 21. exf5 {[%clk 0:01:09]}  gxf5 {[%clk 0:01:22]} 22. Rb3 {[%clk 0:01:09]}  Kh8 {[%clk 0:01:12]} 23. Rh3 {[%clk 0:01:04]}  Bg7 {[%clk 0:01:10]} 24. Rh5 {[%clk 0:00:58]}  Ndf6 {[%clk 0:01:06]} 25. Nb6 {[%clk 0:00:53]}  Nxh5 {[%clk 0:00:39]} 26. Bxh5 {[%clk 0:00:45]}  Nf6 {[%clk 0:00:36]} 27. Be2 {[%clk 0:00:45]}  Rd8 {[%clk 0:00:22]} 28. Nxa8 {[%clk 0:00:30]}  Qxa8 {[%clk 0:00:23]} 29. Qc7 {[%clk 0:00:29]}  Bd7 {[%clk 0:00:23]} 30. Nc4 {[%clk 0:00:07]}  Ne8 {[%clk 0:00:18]} 31. Qb6 {[%clk 0:00:07]}  Rc8 {[%clk 0:00:17]} 32. Ra1 {[%clk 0:00:05]}  e4 {[%clk 0:00:13]} 33. Re1 {[%clk 0:00:04]}  Qxa2 {[%clk 0:00:13]} 34. Nxd6 {[%clk 0:00:04]}  Nxd6 {[%clk 0:00:09]} 35. Qxd6 {[%clk 0:00:05]}  Be8 {[%clk 0:00:06]} 36. h3 {[%clk 0:00:05]}  Bg6 {[%clk 0:00:04]} 37. Qe6 {[%clk 0:00:05]}  Re8 {[%clk 0:00:03]} 38. Qd7 {[%clk 0:00:05]}  f4 {[%clk 0:00:02]} 39. d6 {[%clk 0:00:05]}  e3 {[%clk 0:00:03]} 40. fxe3 {[%clk 0:00:05]}  fxe3 {[%clk 0:00:01]} 41. Qc7 {[%clk 0:00:05]}  Qe6 {[%clk 0:00:02]} 42. Bc3 {[%clk 0:00:05]}  Bxc3 {[%clk 0:00:01]} 43. Qxc3+ {[%clk 0:00:05]}  Qe5 {[%clk 0:00:02]} 44. Qc7 {[%clk 0:00:04]}  Rf8 {[%clk 0:00:01]} 45. Rf1 {[%clk 0:00:04]} 1-0


[Site "https://www.chess.com"]

[Event "Titled Tuesday Blitz August 17 2021"]
[White "Indjic, Aleksandar"]
[Black "Shimanov, Aleksandr"]
[WhiteFideId "911925"]
[BlackFideId "4198603"]
[WhiteElo "2643"]
[BlackElo "2596"]
[Result "0-1"]
[Round "06"]
[TimeControl "180+1"]
[Date "2021.08.17"]
[WhiteClock "0:00:04"]
[BlackClock "0:00:10"]

1. d4 {[%clk 0:03:00]}  d5 {[%clk 0:02:59]} 2. c4 {[%clk 0:03:00]}  c6 {[%clk 0:02:59]} 3. Nf3 {[%clk 0:03:01]}  Nf6 {[%clk 0:02:59]} 4. Nc3 {[%clk 0:03:01]}  dxc4 {[%clk 0:02:59]} 5. a4 {[%clk 0:03:00]}  Bf5 {[%clk 0:02:59]} 6. Ne5 {[%clk 0:02:57]}  Nbd7 {[%clk 0:02:59]} 7. Nxc4 {[%clk 0:02:57]}  Nb6 {[%clk 0:03:00]} 8. Ne5 {[%clk 0:02:56]}  a5 {[%clk 0:03:00]} 9. h4 {[%clk 0:02:55]}  h6 {[%clk 0:02:57]} 10. f3 {[%clk 0:02:50]}  Nfd7 {[%clk 0:02:53]} 11. e4 {[%clk 0:02:44]}  Bh7 {[%clk 0:02:44]} 12. Be3 {[%clk 0:02:31]}  e6 {[%clk 0:02:41]} 13. Qb3 {[%clk 0:02:12]}  Nxe5 {[%clk 0:02:30]} 14. dxe5 {[%clk 0:02:12]}  Bb4 {[%clk 0:02:31]} 15. Kf2 {[%clk 0:02:13]}  Nd7 {[%clk 0:02:18]} 16. Na2 {[%clk 0:02:02]}  Bc5 {[%clk 0:02:11]} 17. Rd1 {[%clk 0:01:55]}  Bxe3+ {[%clk 0:02:06]} 18. Qxe3 {[%clk 0:01:56]}  Qe7 {[%clk 0:01:58]} 19. f4 {[%clk 0:01:52]}  f6 {[%clk 0:01:49]} 20. g4 {[%clk 0:01:28]}  fxe5 {[%clk 0:01:41]} 21. f5 {[%clk 0:01:28]}  O-O {[%clk 0:01:32]} 22. Bc4 {[%clk 0:01:26]}  Kh8 {[%clk 0:01:31]} 23. Nc3 {[%clk 0:01:20]}  Nf6 {[%clk 0:01:26]} 24. Kg3 {[%clk 0:01:14]}  exf5 {[%clk 0:01:24]} 25. gxf5 {[%clk 0:01:05]}  Rad8 {[%clk 0:01:21]} 26. Be2 {[%clk 0:00:56]}  Qb4 {[%clk 0:01:14]} 27. Rb1 {[%clk 0:00:29]}  Rd4 {[%clk 0:01:11]} 28. Bf3 {[%clk 0:00:28]}  Rfd8 {[%clk 0:01:10]} 29. Rhd1 {[%clk 0:00:28]}  Rxd1 {[%clk 0:01:04]} 30. Nxd1 {[%clk 0:00:22]}  Qxa4 {[%clk 0:00:57]} 31. Nf2 {[%clk 0:00:22]}  Bg8 {[%clk 0:00:47]} 32. Qb6 {[%clk 0:00:20]}  Rd2 {[%clk 0:00:45]} 33. Rg1 {[%clk 0:00:13]}  Qd4 {[%clk 0:00:43]} 34. Qxd4 {[%clk 0:00:12]}  Rxd4 {[%clk 0:00:43]} 35. Ra1 {[%clk 0:00:12]}  b6 {[%clk 0:00:42]} 36. Rc1 {[%clk 0:00:05]}  c5 {[%clk 0:00:42]} 37. Rc3 {[%clk 0:00:05]}  c4 {[%clk 0:00:41]} 38. Rc2 {[%clk 0:00:05]}  b5 {[%clk 0:00:41]} 39. Kg2 {[%clk 0:00:05]}  b4 {[%clk 0:00:41]} 40. Kf1 {[%clk 0:00:05]}  a4 {[%clk 0:00:39]} 41. Ke2 {[%clk 0:00:04]}  Bf7 {[%clk 0:00:31]} 42. Ke3 {[%clk 0:00:02]}  Kg8 {[%clk 0:00:26]} 43. Rc1 {[%clk 0:00:03]}  Kf8 {[%clk 0:00:26]} 44. Bd1 {[%clk 0:00:03]}  Be8 {[%clk 0:00:22]} 45. Be2 {[%clk 0:00:03]}  Bb5 {[%clk 0:00:22]} 46. Ra1 {[%clk 0:00:02]}  Ke7 {[%clk 0:00:16]} 47. Bf1 {[%clk 0:00:03]}  Kd6 {[%clk 0:00:15]} 48. Be2 {[%clk 0:00:03]}  Kc5 {[%clk 0:00:15]} 49. Rc1 {[%clk 0:00:03]}  b3 {[%clk 0:00:16]} 50. Nd3+ {[%clk 0:00:02]}  Kd6 {[%clk 0:00:15]} 51. Nf2 {[%clk 0:00:02]}  a3 {[%clk 0:00:11]} 52. bxa3 {[%clk 0:00:02]}  b2 {[%clk 0:00:12]} 53. Rb1 {[%clk 0:00:03]}  c3 {[%clk 0:00:11]} 54. Bd3 {[%clk 0:00:02]}  Bxd3 {[%clk 0:00:09]} 55. Nxd3 {[%clk 0:00:02]}  c2 {[%clk 0:00:10]} 56. Rxb2 {[%clk 0:00:03]}  Rxd3+ {[%clk 0:00:10]} 57. Kxd3 {[%clk 0:00:03]}  c1=Q {[%clk 0:00:10]} 58. Rb6+ {[%clk 0:00:04]}  Kc7 {[%clk 0:00:10]} 0-1


[Site "https://www.chess.com"]

[Event "Titled Tuesday Blitz August 17 2021"]
[White "Kadam, Om Manish"]
[Black "Drygalov, Sergey"]
[WhiteFideId "45076294"]
[BlackFideId "24171743"]
[WhiteElo "1729"]
[BlackElo "2514"]
[Result "0-1"]
[Round "06"]
[TimeControl "180+1"]
[Date "2021.08.17"]
[WhiteClock "0:00:11"]
[BlackClock "0:00:10"]

1. e4 {[%clk 0:03:00]}  c5 {[%clk 0:02:59]} 2. Nf3 {[%clk 0:03:01]}  d6 {[%clk 0:02:53]} 3. d4 {[%clk 0:03:01]}  cxd4 {[%clk 0:02:54]} 4. Nxd4 {[%clk 0:03:02]}  Nf6 {[%clk 0:02:55]} 5. Nc3 {[%clk 0:03:02]}  a6 {[%clk 0:02:55]} 6. g3 {[%clk 0:03:03]}  e5 {[%clk 0:02:51]} 7. Nde2 {[%clk 0:03:03]}  Be7 {[%clk 0:02:48]} 8. Bg2 {[%clk 0:03:01]}  b5 {[%clk 0:02:44]} 9. Nd5 {[%clk 0:03:02]}  Nxd5 {[%clk 0:02:40]} 10. Qxd5 {[%clk 0:03:03]}  Ra7 {[%clk 0:02:34]} 11. Be3 {[%clk 0:03:03]}  Be6 {[%clk 0:02:32]} 12. Qd2 {[%clk 0:03:03]}  Rb7 {[%clk 0:02:28]} 13. Nc3 {[%clk 0:03:04]}  Nd7 {[%clk 0:02:27]} 14. O-O {[%clk 0:03:02]}  O-O {[%clk 0:02:23]} 15. Nd5 {[%clk 0:03:02]}  Bxd5 {[%clk 0:02:23]} 16. Qxd5 {[%clk 0:03:01]}  Qc7 {[%clk 0:02:23]} 17. Rfd1 {[%clk 0:02:59]}  Nb6 {[%clk 0:02:21]} 18. Bxb6 {[%clk 0:02:58]}  Rxb6 {[%clk 0:02:22]} 19. Rac1 {[%clk 0:02:58]}  Rc6 {[%clk 0:02:22]} 20. c3 {[%clk 0:02:56]}  Qb6 {[%clk 0:02:11]} 21. Rc2 {[%clk 0:02:52]}  Rfc8 {[%clk 0:02:10]} 22. Bh3 {[%clk 0:02:44]}  R8c7 {[%clk 0:02:08]} 23. Rcd2 {[%clk 0:02:42]}  g6 {[%clk 0:02:07]} 24. Bf1 {[%clk 0:02:40]}  Kg7 {[%clk 0:02:01]} 25. Kg2 {[%clk 0:02:39]}  Rc5 {[%clk 0:02:01]} 26. Qd3 {[%clk 0:02:39]}  a5 {[%clk 0:02:01]} 27. Be2 {[%clk 0:02:36]}  b4 {[%clk 0:02:01]} 28. c4 {[%clk 0:02:36]}  Qb7 {[%clk 0:01:51]} 29. b3 {[%clk 0:02:31]}  a4 {[%clk 0:01:50]} 30. Qe3 {[%clk 0:02:29]}  R7c6 {[%clk 0:01:37]} 31. Rd5 {[%clk 0:02:28]}  Rxd5 {[%clk 0:01:28]} 32. Rxd5 {[%clk 0:02:28]}  Bd8 {[%clk 0:01:19]} 33. Rb5 {[%clk 0:02:23]}  Rb6 {[%clk 0:01:19]} 34. Rd5 {[%clk 0:02:20]}  axb3 {[%clk 0:01:07]} 35. axb3 {[%clk 0:02:20]}  Bc7 {[%clk 0:01:07]} 36. c5 {[%clk 0:02:17]}  dxc5 {[%clk 0:01:07]} 37. Bc4 {[%clk 0:02:17]}  Bd6 {[%clk 0:01:02]} 38. Qf3 {[%clk 0:02:12]}  Qe7 {[%clk 0:01:02]} 39. Rd1 {[%clk 0:02:11]}  Rb7 {[%clk 0:01:00]} 40. h4 {[%clk 0:02:07]}  h5 {[%clk 0:00:59]} 41. Ra1 {[%clk 0:02:04]}  Ra7 {[%clk 0:00:58]} 42. Rxa7 {[%clk 0:02:01]}  Qxa7 {[%clk 0:00:59]} 43. Qd3 {[%clk 0:02:02]}  Be7 {[%clk 0:00:55]} 44. Qd5 {[%clk 0:02:01]}  Bf6 {[%clk 0:00:56]} 45. Kf3 {[%clk 0:01:53]}  Qe7 {[%clk 0:00:56]} 46. Kg2 {[%clk 0:01:52]}  g5 {[%clk 0:00:57]} 47. hxg5 {[%clk 0:01:52]}  Bxg5 {[%clk 0:00:58]} 48. Qd1 {[%clk 0:01:52]}  h4 {[%clk 0:00:56]} 49. Qg4 {[%clk 0:01:49]}  hxg3 {[%clk 0:00:56]} 50. fxg3 {[%clk 0:01:48]}  Qf6 {[%clk 0:00:42]} 51. Qd7 {[%clk 0:01:46]}  Be3 {[%clk 0:00:41]} 52. Qg4+ {[%clk 0:01:46]}  Bg5 {[%clk 0:00:25]} 53. Bd5 {[%clk 0:01:42]}  Kh6 {[%clk 0:00:22]} 54. Qc8 {[%clk 0:01:39]}  Kg7 {[%clk 0:00:17]} 55. Qxc5 {[%clk 0:01:38]}  Bd2 {[%clk 0:00:15]} 56. Qc8 {[%clk 0:01:29]}  Bc3 {[%clk 0:00:16]} 57. Qg4+ {[%clk 0:01:29]}  Qg6 {[%clk 0:00:16]} 58. Qf3 {[%clk 0:01:28]}  Bd4 {[%clk 0:00:16]} 59. Qe2 {[%clk 0:01:25]}  Qf6 {[%clk 0:00:17]} 60. Qc2 {[%clk 0:01:23]}  Qg6 {[%clk 0:00:16]} 61. Qc8 {[%clk 0:01:21]}  Qf6 {[%clk 0:00:16]} 62. Qg4+ {[%clk 0:01:22]}  Kf8 {[%clk 0:00:16]} 63. Qe2 {[%clk 0:01:14]}  Bc5 {[%clk 0:00:15]} 64. Qc2 {[%clk 0:01:13]}  Bd4 {[%clk 0:00:14]} 65. Bc4 {[%clk 0:01:12]}  Kg7 {[%clk 0:00:12]} 66. Qe2 {[%clk 0:01:12]}  Qg5 {[%clk 0:00:12]} 67. Bd5 {[%clk 0:01:07]}  Qe3 {[%clk 0:00:11]} 68. Qg4+ {[%clk 0:01:07]}  Kf8 {[%clk 0:00:12]} 69. Qc8+ {[%clk 0:01:07]}  Kg7 {[%clk 0:00:12]} 70. Qg4+ {[%clk 0:01:07]}  Kf8 {[%clk 0:00:13]} 71. Qf5 {[%clk 0:00:40]}  Qg1+ {[%clk 0:00:12]} 72. Kh3 {[%clk 0:00:40]}  Qh1+ {[%clk 0:00:12]} 73. Kg4 {[%clk 0:00:41]}  Qd1+ {[%clk 0:00:12]} 74. Kg5 {[%clk 0:00:37]}  Qd2+ {[%clk 0:00:12]} 75. Kg4 {[%clk 0:00:28]}  Qd1+ {[%clk 0:00:12]} 76. Kh4 {[%clk 0:00:22]}  Qh1+ {[%clk 0:00:12]} 77. Kg5 {[%clk 0:00:20]}  Be3+ {[%clk 0:00:10]} 78. Kf6 {[%clk 0:00:11]}  Qh8# {[%clk 0:00:10]} 0-1


[Site "https://www.chess.com"]

[Event "Titled Tuesday Blitz August 17 2021"]
[White "Kamsky, Gata"]
[Black "Kezin, Roman"]
[WhiteFideId "2000024"]
[BlackFideId "24124621"]
[WhiteElo "2644"]
[BlackElo "2570"]
[Result "0-1"]
[Round "06"]
[TimeControl "180+1"]
[Date "2021.08.17"]
[WhiteClock "0:00:01"]
[BlackClock "0:00:02"]

1. d4 {[%clk 0:03:00]}  d5 {[%clk 0:02:59]} 2. Bf4 {[%clk 0:03:00]}  Nf6 {[%clk 0:02:56]} 3. e3 {[%clk 0:03:01]}  c5 {[%clk 0:02:54]} 4. c3 {[%clk 0:03:00]}  Nc6 {[%clk 0:02:54]} 5. Nd2 {[%clk 0:02:59]}  Qb6 {[%clk 0:02:37]} 6. Qb3 {[%clk 0:02:55]}  c4 {[%clk 0:02:34]} 7. Qc2 {[%clk 0:02:54]}  g6 {[%clk 0:02:35]} 8. e4 {[%clk 0:02:54]}  dxe4 {[%clk 0:02:33]} 9. Bxc4 {[%clk 0:02:45]}  Bf5 {[%clk 0:02:32]} 10. Qb3 {[%clk 0:02:45]}  e6 {[%clk 0:02:26]} 11. Qxb6 {[%clk 0:02:41]}  axb6 {[%clk 0:02:26]} 12. Ne2 {[%clk 0:02:41]}  Nd5 {[%clk 0:02:17]} 13. Be3 {[%clk 0:02:39]}  Bd6 {[%clk 0:01:51]} 14. Bb3 {[%clk 0:02:29]}  O-O {[%clk 0:01:07]} 15. Bc2 {[%clk 0:02:26]}  e5 {[%clk 0:01:08]} 16. Nxe4 {[%clk 0:01:18]}  exd4 {[%clk 0:01:06]} 17. Nxd6 {[%clk 0:01:10]}  Bxc2 {[%clk 0:01:06]} 18. Nxd4 {[%clk 0:01:08]}  Nxd4 {[%clk 0:01:04]} 19. Bxd4 {[%clk 0:01:07]}  Rad8 {[%clk 0:01:03]} 20. Nc4 {[%clk 0:01:06]}  b5 {[%clk 0:00:57]} 21. Na3 {[%clk 0:00:58]}  Bd3 {[%clk 0:00:47]} 22. Kd2 {[%clk 0:00:56]}  b4 {[%clk 0:00:47]} 23. Kxd3 {[%clk 0:00:44]}  bxa3 {[%clk 0:00:47]} 24. bxa3 {[%clk 0:00:44]}  Nf4+ {[%clk 0:00:48]} 25. Kc2 {[%clk 0:00:33]}  Nxg2 {[%clk 0:00:47]} 26. Rhb1 {[%clk 0:00:31]}  Rd7 {[%clk 0:00:47]} 27. Rb5 {[%clk 0:00:29]}  Nh4 {[%clk 0:00:33]} 28. Rab1 {[%clk 0:00:28]}  Nf3 {[%clk 0:00:34]} 29. Be3 {[%clk 0:00:27]}  Rc8 {[%clk 0:00:20]} 30. h3 {[%clk 0:00:24]}  h5 {[%clk 0:00:20]} 31. Rxb7 {[%clk 0:00:23]}  Ne1+ {[%clk 0:00:20]} 32. Rxe1 {[%clk 0:00:19]}  Rxb7 {[%clk 0:00:20]} 33. Bd4 {[%clk 0:00:19]}  Rd7 {[%clk 0:00:17]} 34. Kd3 {[%clk 0:00:18]}  f6 {[%clk 0:00:16]} 35. Re6 {[%clk 0:00:17]}  Rf8 {[%clk 0:00:17]} 36. a4 {[%clk 0:00:17]}  Kg7 {[%clk 0:00:06]} 37. a5 {[%clk 0:00:17]}  g5 {[%clk 0:00:06]} 38. a6 {[%clk 0:00:16]}  Kg6 {[%clk 0:00:06]} 39. a7 {[%clk 0:00:16]}  Rdd8 {[%clk 0:00:05]} 40. a4 {[%clk 0:00:14]}  Kf5 {[%clk 0:00:06]} 41. Ra6 {[%clk 0:00:12]}  h4 {[%clk 0:00:06]} 42. Ke2 {[%clk 0:00:11]}  g4 {[%clk 0:00:06]} 43. hxg4+ {[%clk 0:00:11]}  Kxg4 {[%clk 0:00:07]} 44. Bxf6 {[%clk 0:00:11]}  Rde8+ {[%clk 0:00:07]} 45. Kf1 {[%clk 0:00:10]}  h3 {[%clk 0:00:08]} 46. Bd4 {[%clk 0:00:08]}  Kf3 {[%clk 0:00:03]} 47. Rg6 {[%clk 0:00:07]}  Rg8 {[%clk 0:00:03]} 48. Rh6 {[%clk 0:00:05]}  Kg4 {[%clk 0:00:02]} 49. a5 {[%clk 0:00:03]}  Ref8 {[%clk 0:00:01]} 50. a6 {[%clk 0:00:03]}  Re8 {[%clk 0:00:02]} 51. c4 {[%clk 0:00:02]}  Rgf8 {[%clk 0:00:02]} 52. c5 {[%clk 0:00:01]}  Rf4 {[%clk 0:00:02]} 53. Rg6+ {[%clk 0:00:01]}  Kf5 {[%clk 0:00:02]} 54. Rd6 {[%clk 0:00:01]}  Rfe4 {[%clk 0:00:02]} 0-1


[Site "https://www.chess.com"]